Cogmind - Beta 16 @@@ ROGUE MODE // 2025.11.05 @ 21:58:59 Player: jumpy Result: Destroyed by G-47 Trooper with Particle Gun Performance ------------- Evolutions (0) 0 Regions Visited (2) 400 Robots Destroyed (17) 85 Value Destroyed (361) 361 Prototype IDs (0) 0 Alien Tech Used (0) 0 Bonus (0) 0 TOTAL SCORE: 846 Bonus ------- None Cogmind --------- Core Integrity 0/250 Matter 300/300 Energy 96/100 System Corruption 3% Temperature Cool (9) Movement Hovering (155) Ox1 Location -10/Mines Parts ------- > --- POWER (1) -------- (None) > --- PROPULSION (2) --- Compact Wheel Combat Airjet > --- UTILITY (2) ------ Large Storage Unit > --- WEAPON (2) ------- Small Laser > --- INVENTORY (15) --- Heat Sink Structural Scanner Improved Terrain Scanner Seismic Detector Mining Laser Peak State ------------ > --- POWER ------------ Light Ion Engine > --- PROPULSION ------- Compact Wheel Combat Airjet > --- UTILITY ---------- Large Storage Unit Seismic Detector > --- WEAPON ----------- Small Laser > --- INVENTORY -------- Heat Sink Structural Scanner Improved Terrain Scanner Seismic Detector Mining Laser [Rating: 10] Favorites ----------- Power Ion Engine Engine Ion Engine Propulsion Light Treads Treads Light Treads Leg Aluminum Leg Wheel Compact Wheel Hover Unit Combat Airjet Utility Seismic Detector Device Seismic Detector Storage Large Storage Unit Weapon Medium Laser Energy Gun Medium Laser Build | -11 -10 -10 ------- Run | Yrd Mat Min Slots Evolved . | . . . Power . | . . . Propulsion . | . . . Utility . | . . . Weapon . | . . . Parts Attached 15 | 9 5 1 Power 2 | 1 1 . Engine 2 | 1 1 . Core . | . . . Reactor . | . . . Propulsion 7 | 4 2 1 Treads 2 | 2 . . Leg 2 | 2 . . Wheel 2 | . 2 . Hover 1 | . . 1 Flight . | . . . Utility 3 | 2 1 . Device 1 | 1 . . Storage 2 | 1 1 . Processor . | . . . Hackware . | . . . Protection . | . . . Artifact . | . . . Weapon 3 | 2 1 . Energy Gun 3 | 2 1 . Energy Cannon . | . . . Ballistic Gun . | . . . Ballistic Cannon . | . . . Launcher . | . . . Special Weapon . | . . . Impact Weapon . | . . . Slashing Weapon . | . . . Piercing Weapon . | . . . Special Melee Weapon . | . . . Unidentified Prototypes . | . . . Parts Lost 8 | . 5 3 Power 2 | . 1 1 Propulsion 3 | . 2 1 Utility 1 | . . 1 Weapon 2 | . 2 . Highest Loss Streak 2 | . 2 2 To Critical Strikes . | . . . Average Backups 4 | 2 5 5 Power . | . . . Propulsion 1 | 1 1 . Utility 1 | . 2 4 Weapon . | . 1 1 Tool/Special . | . . . Unused Backups 4 | . . 4 Power . | . . . Propulsion . | . . . Utility 3 | . . 3 Weapon 1 | . . 1 Tool/Special . | . . . Average Slot Usage (%) 89 | . 91 80 Engine 13 | . 13 14 Treads 15 | . 17 . Wheel 10 | . 8 18 Hover 1 | . . 6 Device 13 | . 14 12 Storage 14 | . 14 14 Energy Gun 20 | . 22 14 Peak Build Rating 10 | 7 7 10 Average Rating 6 | 6 6 7 On Entrance 4 | . 7 6 Avg Prop Armor Cover (%) 8 | . 11 5 Naked Turns . | . . . Heaviest Build 30 | 15 30 25 Greatest Support 40 | 40 40 26 Greatest Overweight (x) 2 | . 1 2 Average Overweight (x) . | . . 1 Largest Inventory Capacity 15 | 8 15 15 Average Capacity 12 | 7 14 15 Most Carried 7 | 6 7 5 Average Carried 4 | 3 5 5 Final Capacity 15 | 8 15 15 Final Carried 6 | 6 5 5 Class Distribution -------------------- 100% | Mutant Dominant Class ---------------- Mutant | -10/Materials Mutant | -10/Mines Resources | -11 -10 -10 ----------- Run | Yrd Mat Min Matter Collected 391 | 290 91 10 Remotely . | . . . Salvage Created 629 | 178 309 142 Parts 27 | 12 10 5 Haulers Intercepted 1 | . 1 . Recyclers Shooed 3 | 1 1 1 Parts Field Recycled . | . . . Retrieved Matter . | . . . Parts Self-Destructed . | . . . Prevented . | . . . Parts Restored . | . . . Kills | -11 -10 -10 ------- Run | Yrd Mat Min Combat Hostiles Destroyed 8 | . 7 1 Melee 1 | . 1 . Guns 6 | . 5 1 Classes Destroyed 6 | 3 2 1 Worker 2 | 1 . 1 Tunneler 4 | 4 . . Hauler 1 | . 1 . Recycler 2 | 1 . 1 Grunt 7 | . 7 . Demolisher 1 | . . 1 Best Kill Streak 3 | 3 2 3 Combat Bots Only 2 | . 2 1 Max Kills in Single Turn 1 | 1 1 1 Gunslinging . | . . . Exploded . | . . . Melee 1 | . 1 . Uniques/NPCs Destroyed . | . . . Combat | -11 -10 -10 -------- Run | Yrd Mat Min Hostile Shots Fired 89 | . 81 8 Missed 15 | . 14 1 Hits 74 | . 67 7 Projectile 74 | . 67 7 AOE 4 | . . 4 Critical Strikes 2 | . 2 . Damage Taken 1058 | . 836 222 Core 262 | . 174 88 Absorbed by Shields . | . . . Core Remaining (%) 100 | 100 . . Volleys Fired 92 | 13 67 12 Largest 2 | 2 2 1 Hottest 100 | 100 100 40 Shots Fired 130 | 26 91 13 Gun 130 | 26 91 13 Cannon . | . . . Launcher . | . . . Special . | . . . Kinetic . | . . . Thermal 130 | 26 91 13 Explosive . | . . . Electromagnetic . | . . . Robot Hit Streak 17 | 6 17 10 Robot Miss Streak 3 | 2 3 1 Penetration Max . | . . . Secondary Targets . | . . . Shots Hit Robots 101 | 18 72 11 Core Hits 30 | 5 19 6 Critical Kills . | . . . Critical Parts Destroyed . | . . . Critical Strikes 7 | 2 5 . Burn 7 | 2 5 . Melee Attacks . | . . . Impact . | . . . Slashing . | . . . Piercing . | . . . Sneak Attacks . | . . . Combat Hostiles . | . . . Follow-up Attacks . | . . . Damage Inflicted 1241 | 227 894 120 Guns 1226 | 227 879 120 Cannons . | . . . Explosions . | . . . Melee . | . . . Ramming 15 | . 15 . Kinetic . | . . . Thermal 1226 | 227 879 120 Explosive . | . . . Electromagnetic . | . . . Impact . | . . . Slashing . | . . . Piercing . | . . . Highest Corruption 3 | . 3 3 Average Corruption 1 | . 1 3 Corruption Purged . | . . . Corruption Blocked . | . . . Effects 5 | . 2 3 Message Errors 2 | . 1 1 Matter Fused 1 | . . 1 Heat Flow Errors 1 | . 1 . Misfires 1 | . . 1 Overload Shots . | . . . Overflow Damage . | . . . Projectiles . | . . . Explosions . | . . . Melee . | . . . Knockbacks 2 | . 2 . Impact 2 | . 2 . Kinetic . | . . . Secondary . | . . . Self-Inflicted Damage 1 | . 1 . Shots . | . . . Rammed 7 | . 7 . Targets Rammed 8 | . 8 . Kicked . | . . . Crushed 1 | . 1 . Highest Temperature 400 | 217 400 4 Average Temperature 130 | 80 145 3 Received Heat Transfer 558 | . 507 51 Effects 8 | . 8 . Shutdowns 1 | . 1 . Energy Bleed 1 | . 1 . Interference 2 | . 2 . Matter Decay 1 | . 1 . Short Circuit 1 | . 1 . Damage (minor) 2 | . 2 . Siege Activations . | . . . Martial Activations . | . . . Shielding Activations . | . . . Robots Disrupted . | . . . Combat Hostiles . | . . . Robots Corrupted . | . . . Combat Hostiles . | . . . Parts Fried . | . . . Impact Corruptions . | . . . Robots Melted 3 | 1 2 . Combat Hostiles 1 | . 1 . Parts Melted 9 | 2 7 . Heat Transferred 4039 | 814 2950 275 Parts Sabotaged . | . . . Parts Stolen . | . . . Parts Stripped . | . . . Power Chain Reactions . | . . . Alert | -11 -10 -10 ------- Run | Yrd Mat Min Maximum Alert Level . | . . . Low Security (%) 100 | 100 100 100 Level 1 . | . . . Level 2 . | . . . Level 3 . | . . . Level 4 . | . . . Level 5 . | . . . High Security . | . . . Max Security . | . . . Peak Influence 45 | 10 45 45 Initial 16 | . . 16 Average 14 | 1 17 28 Influence Increases 307 | 30 222 55 Destroy 0b10 Robot/C 160 | . 140 20 Destroy 0b10 Robot/NC 45 | 30 5 10 Destroy Leader 42 | . 32 10 Lose Combat Pursuer 60 | . 45 15 Influence Decreases 302 | 30 179 93 Entered New Map 27 | . . 27 Time Decay 204 | 30 144 30 Lost Part 55 | . 35 20 Lost Ally 16 | . . 16 Squads Dispatched 1 | . 1 . Investigation . | . . . Extermination . | . . . Reinforcement 1 | . 1 . Assault . | . . . Garrison . | . . . Intercept . | . . . Searches Triggered . | . . . Construction Impeded . | . . . Haulers Reinforced . | . . . Active Scanning Responses . | . . . Cargo Convoy Interrupts . | . . . Stealth | -11 -10 -10 --------- Run | Yrd Mat Min Distress Signals . | . . . Communications Jammed . | . . . Distress Signals . | . . . Times Spotted 22 | . 18 4 Peak Tracking Total 4 | . 4 2 Tactical Retreats 4 | . 3 1 Traps | -11 -10 -10 ------- Run | Yrd Mat Min Traps Triggered 2 | . 2 . Indirectly . | . . . Trap Hack Attempts . | . . . Triggered . | . . . Disarmed . | . . . Reprogrammed . | . . . Reused . | . . . Traps Extracted . | . . . Installed . | . . . Triggered . | . . . Machines | -11 -10 -10 ---------- Run | Yrd Mat Min Machines Disabled . | . . . Max in Single Turn . | . . . Machines Repaired . | . . . Machines Dismantled . | . . . Machines Sabotaged . | . . . Overloaded Fab Kills . | . . . Hacking | -11 -10 -10 --------- Run | Yrd Mat Min Machines Accessed . | . . . Terminals . | . . . Fabricators . | . . . Repair Stations . | . . . Recycling Units . | . . . Scanalyzers . | . . . Garrison Access . | . . . Total Hacks . | . . . Successful . | . . . Failed . | . . . Catastrophic . | . . . Database Lockouts . | . . . Manual . | . . . Terminals . | . . . Fabricators . | . . . Repair Stations . | . . . Recycling Units . | . . . Scanalyzers . | . . . Garrison Access . | . . . Terminal Hacks . | . . . Fabricator Hacks . | . . . Repair Station Hacks . | . . . Recycling Unit Hacks . | . . . Scanalyzer . | . . . Garrison Access Hacks . | . . . Unauthorized Hacks . | . . . Terminals . | . . . Fabricators . | . . . Repair Stations . | . . . Recycling Units . | . . . Scanalyzers . | . . . Garrison Access . | . . . Data Cores Recovered . | . . . Used . | . . . Hacking Detections . | . . . Full Trace Events . | . . . Feedback Events . | . . . Feedback Blocked . | . . . Robot Schematics Acquired . | . . . Robots Built . | . . . Authchips . | . . . Time . | . . . Total Robot Build Rating . | . . . Part Schematics Acquired . | . . . Parts Built . | . . . Authchips . | . . . Time . | . . . Total Part Build Rating . | . . . Part Studies Acquired . | . . . Parts Repaired . | . . . Time . | . . . Parts Recycled . | . . . Recycled Matter . | . . . Retrieved Matter . | . . . Retrieved Components . | . . . Parts Scanalyzed . | . . . Part Schematics Acquired . | . . . Parts Damaged . | . . . Bothacking | -11 -10 -10 ------------ Run | Yrd Mat Min Used RIF Installer . | . . . Robots Hacked . | . . . Non-combat . | . . . Combat . | . . . Robot Hacks Applied . | . . . Relay Couplers Released . | . . . Fabnet Peak Effective % . | . . . Robots Rewired . | . . . Allies Hacked . | . . . Hacks Repelled . | . . . Allies | -11 -10 -10 -------- Run | Yrd Mat Min Total Allies 3 | . . 3 Largest Group 3 | . . 3 Highest-Rated Group 40 | . . 40 Highest-Rated Ally 16 | . . 16 Total Orders . | . . . Ally Attacks 2 | . . 2 Total Damage 30 | . . 30 Kills . | . . . Allies Corrupted . | . . . Allies Melted . | . . . Intel | -11 -10 -10 ------- Run | Yrd Mat Min Active Infowar (turns) 532 | 114 418 . Seismic 532 | 114 418 . Robot Analysis Total . | . . . Derelict Logs Recovered . | . . . Drone Launches . | . . . Drone Recoveries . | . . . Exploration | -11 -10 -10 ------------- Run | Yrd Mat Min Turns Passed 775 | 234 456 85 Spaces Moved 320 | 120 162 38 Core 5 | 5 . . Treads 188 | 91 97 . Legs 24 | 24 . . Wheels 86 | . 65 21 Hover 17 | . . 17 Flight . | . . . Fastest Speed 50 | 50 90 90 Average Speed 153 | 147 157 154 Slowest Speed 240 | 160 240 225 Overloaded Moves . | . . . Propulsion Burnouts . | . . . Robots Hopped . | . . . Potential Cave-ins . | . . . Cave-ins Triggered . | . . . Exploration Rate (%) 19 | 6 42 9 Regions Visited 2 Branch Regions 1 Pre-discovered Areas . | . . . Known Exits Taken . | . . . Unknown Exits Taken 2 | 1 1 . Scrap Searched . | . . . Spaces Dug . | . . . Terrain Destroyed . | . . . Melee . | . . . Projectile . | . . . AOE . | . . . Terrain Rammed . | . . . Walls Destroyed . | . . . Machines Disabled . | . . . Actions | -11 -10 -10 --------- Run | Yrd Mat Min Total 460 | 147 261 52 Wait 18 | . 17 1 Move 318 | 119 161 38 Hop . | . . . Pick Up 8 | 6 2 . Fast Attach 9 | 7 1 1 Attach 3 | . 3 . Detach . | . . . Swap 3 | 2 1 . Drop 1 | . 1 . Fire 92 | 13 67 12 Melee . | . . . Ram 1 | . 1 . Kick . | . . . Crush 7 | . 7 . Escape Stasis . | . . . Rewire . | . . . Trap . | . . . Miscellaneous . | . . . Route ------- -11/Scrapyard -10/Materials (discovered 2 exits: [*Min x2]) -10/Mines History --------- Turn | Location | Event 8 | -11/Scrapyard | Discovered new exit (range 15) 235 | -11/Scrapyard | Entered Materials 306 | -10/Materials | Build established: Mutant 326 | -10/Materials | Discovered new exit (range 16) 539 | -10/Materials | Core integrity fell below 50% 566 | -10/Materials | Discovered new exit (range 15) 691 | -10/Materials | Entered Mines 692 | -10/Mines | Assembled infested the area 694 | -10/Mines | Assisted by bots powering up and referring to "LRC-V3" 706 | -10/Mines | Core integrity fell below 20% 740 | -10/Mines | Lost 3 allies 776 | -10/Mines | Destroyed by G-47 Trooper with Particle Gun Last Messages --------------- 00730_ K-01 Serf collects debris. 00731_ Acquired Cmb. Airjet. 00734_ K-01 Serf collects debris. 00735_ System corrupted: FCS attempts to trigger Sml. Laser. 00735_ System corrupted: Sml. Laser misfires. 00735_ K-01 Serf destroyed. 00736_ The unstable cave ceiling collapses. 00739_ Acquired 10 matter. 00739_ K-01 Serf collects debris. 00746_ The unstable cave ceiling collapses. 00747_ K-01 Serf collects debris. 00758_ U-05 Engineer lays Concrete. 00759_ System corrupted: Matter fused (-10). 00759_ U-05 Engineer lays Concrete. 00759_ K-01 Serf destroyed. 00760_ U-05 Engineer lays Concrete. 00761_ K-01 Serf collects debris. 00762_ U-05 Engineer builds a Wall. 00769_ Seismic Detector destroyed. 00772_ Lgt. Ion Engine destroyed. Map ----- +----------------------------------------------------+ | | | | | | | | | | | | | ??????????????????????????????????????? | | ??????????????????????????????????????? | | ??????????????????????????????????????? | | ??????????????????????????????????????? | | ??????????????????????#???????????????? | | ?????????????????????? #??????????????? | | ?????????????????????? #?????????????? | | ?????????????????????? ?????????????? | | ??????????####???????? ?????????????? | | ???????#### ######??? #?????????????? | | ???????# ###?# #?????????????? | | ???????# ## ### #?????????????? | | ???????# ## #?????????????? | | ???????#### ! # # #?????????????? | | ??????????# %==% %% #?????????????? | | ??????????# =% # ###?????????????? | | ??????????# ## %*#???????????????? | | ??????????## # #???????????????? | | ???????????# # # ###########?????? | | ?????????? ###### g @ #????? | | ???????? ????############# #????? | | ?????? ???????????????????????? | | ?????# ???????????????????????? | | ?????## ???????????????????????? | | ??????# ### ???????????????????????? | | ??????## #???# ??????????????????????? | | ???????###????? ??????????????????????? | | ??????????????????????????????????????? | | ??????????????????????????????????????? | | ??????????????????????????????????????? | | ??????????????????????????????????????? | | ??????????????????????????????????????? | | ??????????????????????????????????????? | | ??????????????????????????????????????? | | ??????????????????????????????????????? | | ??????????????????????????????????????? | | ??????????????????????????????????????? | | ??????????????????????????????????????? | | ??????????????????????????????????????? | | ??????????????????????????????????????? | | ??????????????????????????????????????? | | ??????????????????????????????????????? | | ??????????????????????????????????????? | | ??????????????????????????????????????? | +----------------------------------------------------+ Best States ------------- Heat Dissipation 25 Energy Generation 10 Energy Capacity 250 Matter Stores 300 Matter Capacity 300 Sight Range 16 Terrain Scan Density 10 Evasion (%) 55 Recoil Reduction 2 Item Schematics ----------------- None Robot Schematics ------------------ None Fabricated ------------ Nothing Repaired ---------- Nothing Studied --------- None Alien Tech Used ----------------- None Achievements -------------- None Challenges ------------ None Game ------ Seed NeutronAccelerationTube Manual? 0 Play Time 00:04:51 Cumulative 263.1 hours Start 2025.11.05 @ 21:45:16 End 2025.11.05 @ 21:58:59 Sessions 1 Manual Loads 0 Difficulty Rogue Special Mode None Game No. 583 Rogue 583 Adventurer 0 Explorer 0 Win Type - Total 19 Types 13/0/4/1/1/0/0/0/0/0 Lore% 80 Gallery% 70 Achievement% 48 Wizard Run 0 Options --------- Layout 0 ASCII 0 Keyboard 0 Movement Numpad Keybinds 0 Fullscreen 2 Font 18/Terminus Map View 76x50 Zoom Use 0% Tactical HUD 1 Map Filters NONE Filters SATURATION(100) Steam 1 RUN: ae91fbb8-71cf-40ec-abc7-301f13469d00